fUSD/lending_fUSD_20240201
["ID","MTS","AMOUNT","RATE_DAILY","PERIOD"]
[313130031,1706789438469,-482.6,0.00024537,2]
[313130032,1706789438479,-155.01,0.00024657,2]
[313130033,1706789438489,-250.0,0.00024658,2]
[313130034,1706789438501,-154.66893655,0.00024665,2]
[313130035,1706789438511,-216.46,0.00024791,2]
[313130036,1706789438520,-1888.63,0.00024795,2]
[313130037,1706789438530,-210.0,0.00024859,2]
[313130038,1706789438540,-210.0,0.00024859,2]
[313130039,1706789438549,-1587.92031382,0.00025,2]
[313130040,1706789438559,-935.98268242,0.00025,2]
[313130041,1706789438568,-305.07253524,0.00025,2]
[313130042,1706789438577,-444.89898447,0.00025,2]
[313130043,1706789438588,-434.66039764,0.00025,2]
[313130044,1706789438598,-350.0,0.00025,3]
[313130045,1706789438607,-275.09,0.00025012,2]
[313130046,1706789438619,-565.3,0.00025083,2]
[313130047,1706789438628,-154.45378261,0.0002509,2]
[313130048,1706789438640,-1327.56068092,0.000251,2]
[313130049,1706789438649,-193.28456754,0.00025215,2]
[313130050,1706789438658,-216.46,0.00025638,2]
[313130051,1706789438668,-403.35,0.00025753,2]
[313130052,1706789438678,-403.35,0.00025753,2]
[313130053,1706789438688,-709.91,0.00025753,2]
[313130054,1706789438697,-155.7,0.00025753,2]
[313130055,1706789438707,-680.39,0.00025753,2]
[313130056,1706789438717,-517.4,0.00025887,2]
[313130057,1706789438727,-150.0,0.00026079,2]
[313130058,1706789438736,-275.09,0.00026148,2]
[313130060,1706789438749,-170.06685639,0.0002615,11]
[313130062,1706789438758,-208.0,0.00026301,7]
[313130064,1706789438766,-18839.66498763,0.000264,2]
[313130066,1706789438775,-1109.79868394,0.000264,3]
[313130068,1706789438784,-154.66893655,0.00026431,2]
[313130070,1706789438793,-216.46,0.00026485,2]
[313130072,1706789438803,-410.03,0.00026575,2]
[313130074,1706789438812,-565.3,0.00026727,2]
[313130076,1706789438821,-400.0,0.00027,3]
[313130078,1706789438831,-155.01,0.00027046,2]
[313130080,1706789438840,-1567.77,0.00027123,2]
[313130082,1706789438849,-2593.0,0.000272,2]
[313130084,1706789438858,-4845.0,0.000272,2]
[313130086,1706789438867,-482.6,0.00027263,2]
[313130088,1706789438875,-275.09,0.00027285,2]
[313130089,1706789438884,-216.46,0.00027332,2]
[313130091,1706789438894,-691.97977343,0.00027397,2]
[313130093,1706789438902,-517.98027568,0.00027397,2]
[313130095,1706789438912,-500.0,0.00027397,2]
[313130097,1706789438921,-500.0,0.00027397,2]
[313130099,1706789438931,-500.0,0.00027397,2]
[313130101,1706789438940,-500.0,0.00027397,2]
[313130103,1706789438948,-500.0,0.00027397,2]
[313130105,1706789438957,-500.0,0.00027397,2]
[313130107,1706789438967,-500.9,0.00027397,2]
[313130109,1706789438976,-500.0,0.00027397,2]
[313130111,1706789438985,-500.0,0.00027397,2]
[313130112,1706789438995,-500.0,0.00027397,2]
[313130114,1706789439004,-500.0,0.00027397,2]
[313130116,1706789439013,-500.0,0.00027397,2]
[313130118,1706789439022,-228.21361542,0.00027397,2]
[313130119,1706789439032,-500.0,0.00027397,2]
[313130120,1706789439041,-500.0,0.00027397,2]
[313130121,1706789439051,-500.0,0.00027397,2]
[313130122,1706789439060,-500.0,0.00027397,2]
[313130123,1706789439079,-500.0,0.00027397,2]
[313130124,1706789439090,-500.0,0.00027397,2]
[313130125,1706789439099,-500.0,0.00027397,2]
[313130126,1706789439108,-393.59968601,0.00027397,2]
[313130127,1706789439117,-500.0,0.00027397,2]
[313130128,1706789439126,-500.0,0.00027397,2]
[313130129,1706789439136,-500.0,0.00027397,7]
[313130130,1706789439146,-500.0,0.00027397,2]
[313130131,1706789439155,-500.0,0.00027397,2]
[313130132,1706789439165,-500.0,0.00027397,2]
[313130133,1706789439175,-500.0,0.00027397,2]
[313130134,1706789439184,-500.0,0.00027397,2]
[313130135,1706789439194,-500.0,0.00027397,2]
[313130137,1706789439203,-500.0,0.00027397,2]
[313130139,1706789439212,-500.0,0.00027397,2]
[313130140,1706789439221,-500.0,0.00027397,2]
[313130141,1706789439230,-500.0,0.00027397,2]
[313130142,1706789439241,-500.0,0.00027397,2]
[313130143,1706789439250,-500.0,0.00027397,2]
[313130144,1706789439260,-500.0,0.00027397,2]
[313130145,1706789439269,-500.0,0.00027397,2]
[313130146,1706789439278,-500.0,0.00027397,2]
[313130147,1706789439288,-500.0,0.00027397,2]
[313130148,1706789439297,-500.0,0.00027397,2]
[313130149,1706789439306,-500.0,0.00027397,2]
[313130150,1706789439315,-500.0,0.00027397,2]
[313130151,1706789439324,-500.0,0.00027397,2]
[313130152,1706789439334,-500.0,0.00027397,2]
[313130153,1706789439343,-500.0,0.00027397,2]
[313130154,1706789439352,-500.0,0.00027397,2]
[313130155,1706789439365,-500.0,0.00027397,2]
[313130156,1706789439375,-500.0,0.00027397,2]
[313130157,1706789439386,-271.53552614,0.00027397,2]
[313130158,1706789439395,-158.56059797,0.00027397,2]
[313130159,1706789439406,-500.0,0.00027397,2]
[313130160,1706789439416,-500.0,0.00027397,2]
[313130161,1706789439427,-500.0,0.00027397,2]
[313130162,1706789439437,-500.0,0.00027397,2]
[313130163,1706789439447,-500.0,0.00027397,2]
[313130164,1706789439457,-492.09226402,0.00027397,2]
[313130165,1706789439466,-500.0,0.00027397,2]
[313130166,1706789439475,-533.76270983,0.00027397,2]
[313130167,1706789439484,-299.78991,0.00027397,2]
[313130168,1706789439495,-500.0,0.00027397,2]
[313130169,1706789439504,-500.0,0.00027397,2]
[313130170,1706789439513,-500.0,0.00027397,2]
[313130171,1706789439522,-619.81763256,0.00027397,2]
[313130172,1706789439531,-500.0,0.00027397,2]
[313130173,1706789439541,-500.0,0.00027397,2]
[313130174,1706789439550,-500.0,0.00027397,2]
[313130175,1706789439560,-500.0,0.00027397,2]
[313130176,1706789439569,-500.0,0.00027397,2]
[313130177,1706789439582,-500.0,0.00027397,2]
[313130178,1706789439591,-500.0,0.00027397,2]
[313130179,1706789439600,-394.93552977,0.00027397,2]
[313130180,1706789439609,-630.44,0.00027397,2]
[313130181,1706789439623,-500.0,0.00027397,2]
[313130182,1706789439633,-500.0,0.00027397,2]
[313130183,1706789439643,-500.0,0.00027397,2]
[313130184,1706789439653,-279.99555119,0.00027397,2]
[313130185,1706789439662,-7491.3,0.00027397,2]
[313130186,1706789439671,-500.0,0.00027397,2]
[313130187,1706789439680,-500.0,0.00027397,2]
[313130188,1706789439689,-500.0,0.00027397,2]
[313130189,1706789439698,-5037.04,0.00027397,2]
[313130190,1706789439708,-500.0,0.00027397,2]
[313130191,1706789439721,-532.35,0.00027397,2]
[313130192,1706789439732,-500.0,0.00027397,2]
[313130193,1706789439743,-855.46,0.00027397,2]
[313130194,1706789439753,-1993.07,0.00027397,2]
[313130195,1706789439762,-500.0,0.00027397,2]
[313130196,1706789439772,-500.0,0.00027397,2]
[313130197,1706789439781,-664.31,0.00027397,2]
[313130198,1706789439790,-500.0,0.00027397,2]
[313130199,1706789439800,-500.0,0.00027397,2]
[313130200,1706789439810,-778.89,0.00027397,2]
[313130201,1706789439819,-222.54982078,0.00027397,7]
[313130202,1706789439828,-1069.77,0.00027397,2]
[313130203,1706789439837,-500.0,0.00027397,2]
[313130204,1706789439846,-1589.64,0.00027397,2]
[313130205,1706789439855,-500.0,0.00027397,2]
[313130207,1706789439865,-500.0,0.00027397,2]
[313130209,1706789439874,-500.0,0.00027397,2]
[313130211,1706789439883,-500.0,0.00027397,2]
[313130212,1706789439892,-500.0,0.00027397,2]
[313130213,1706789439902,-500.0,0.00027397,2]
[313130214,1706789439911,-500.0,0.00027397,2]
[313130215,1706789439920,-500.0,0.00027397,2]
[313130216,1706789439933,-500.0,0.00027397,2]
[313130217,1706789439942,-586.13,0.00027397,2]
[313130218,1706789439952,-500.0,0.00027397,2]
[313130219,1706789439961,-500.0,0.00027397,2]
[313130220,1706789439970,-500.0,0.00027397,2]
[313130221,1706789439979,-500.0,0.00027397,2]
[313130222,1706789439989,-500.0,0.00027397,2]
[313130223,1706789439999,-500.0,0.00027397,2]
[313130224,1706789440009,-500.0,0.00027397,2]
[313130225,1706789440018,-552.56,0.00027397,2]
[313130226,1706789440027,-500.0,0.00027397,2]
[313130227,1706789440036,-500.0,0.00027397,2]
[313130228,1706789440045,-500.0,0.00027397,2]
[313130229,1706789440055,-731.97,0.00027397,2]
[313130231,1706789440064,-500.0,0.00027397,2]
[313130233,1706789440073,-500.0,0.00027397,2]
[313130235,1706789440083,-500.0,0.00027397,2]
[313130236,1706789440092,-500.0,0.00027397,2]
[313130237,1706789440103,-500.0,0.00027397,2]
[313130238,1706789440112,-379.00547233,0.00027397,2]
[313130239,1706789440122,-500.0,0.00027397,2]
[313130240,1706789440130,-500.0,0.00027397,2]
[313130241,1706789440141,-500.0,0.00027397,2]
[313130242,1706789440151,-500.0,0.00027397,2]
[313130243,1706789440160,-500.0,0.00027397,2]
[313130244,1706789440169,-775.07,0.00027397,2]
[313130245,1706789440178,-500.0,0.00027397,2]
[313130246,1706789440187,-500.0,0.00027397,2]
[313130247,1706789440197,-500.0,0.00027397,2]
[313130248,1706789440207,-500.0,0.00027397,2]
[313130249,1706789440217,-500.0,0.00027397,2]
[313130250,1706789440226,-500.0,0.00027397,2]
[313130251,1706789440236,-500.0,0.00027397,2]
[313130252,1706789440248,-500.0,0.00027397,2]
[313130253,1706789440258,-500.0,0.00027397,2]
[313130254,1706789440271,-500.0,0.00027397,2]
[313130255,1706789440281,-500.0,0.00027397,2]
[313130256,1706789440291,-1135.03,0.00027397,2]
[313130257,1706789440301,-500.0,0.00027397,2]
[313130258,1706789440311,-500.0,0.00027397,2]
[313130259,1706789440320,-500.0,0.00027397,2]
[313130260,1706789440330,-500.0,0.00027397,2]
[313130261,1706789440340,-500.0,0.00027397,2]
[313130262,1706789440350,-842.52,0.00027397,2]
[313130263,1706789440359,-500.0,0.00027397,5]
[313130264,1706789440622,-500.0,0.00027397,2]
[313130265,1706789440631,-500.0,0.00027397,2]
[313130266,1706789440640,-500.0,0.00027397,2]
[313130267,1706789440650,-500.0,0.00027397,2]
[313130268,1706789440660,-500.0,0.00027397,2]
[313130269,1706789440669,-500.0,0.00027397,2]
[313130270,1706789440678,-519.60635601,0.00027397,2]
[313130271,1706789440687,-500.0,0.00027397,2]
[313130272,1706789440698,-500.0,0.00027397,2]
[313130273,1706789440708,-500.0,0.00027397,2]
[313130274,1706789440717,-500.0,0.00027397,2]
[313130275,1706789440727,-500.0,0.00027397,2]
[313130276,1706789440736,-500.0,0.00027397,2]
[313130277,1706789440748,-522.6,0.00027397,2]
[313130278,1706789440758,-500.0,0.00027397,2]
[313130279,1706789440767,-500.0,0.00027397,5]
[313130280,1706789440776,-500.0,0.00027397,2]
[313130281,1706789440787,-500.0,0.00027397,2]
[313130282,1706789440797,-500.0,0.00027397,2]
[313130283,1706789440806,-500.0,0.00027397,2]
[313130284,1706789440815,-500.0,0.00027397,2]
[313130285,1706789440824,-500.0,0.00027397,2]
[313130286,1706789440834,-500.0,0.00027397,2]
[313130287,1706789440843,-524.81390722,0.00027397,2]
[313130288,1706789440852,-500.0,0.00027397,2]
[313130289,1706789440868,-500.0,0.00027397,2]
[313130290,1706789440882,-500.0,0.00027397,2]
[313130291,1706789440891,-201.36,0.00027397,2]
[313130292,1706789440901,-63606.0,0.00027397,4]
[313130293,1706789440910,-1062.41935936,0.000274,2]
[313130294,1706789440920,-186.18995355,0.000275,2]
[313130295,1706789440930,-500.0,0.00027945,2]
[313130296,1706789440940,-500.9,0.00027945,2]
[313130297,1706789440949,-500.0,0.00027945,2]
[313130298,1706789440959,-500.0,0.00027945,2]
[313130299,1706789440969,-500.0,0.00027945,2]
[313130300,1706789440978,-500.0,0.00027945,2]
[313130301,1706789440988,-500.0,0.00027945,2]
[313130302,1706789440999,-500.0,0.00027945,2]
[313130303,1706789441008,-500.0,0.00027945,2]
[313130304,1706789441018,-500.0,0.00027945,2]
[313130305,1706789441027,-500.0,0.00027945,2]
[313130306,1706789441037,-500.0,0.00027945,7]
[313130307,1706789441046,-500.0,0.00027945,2]
[313130308,1706789441056,-500.0,0.00027945,2]
[313130309,1706789441065,-500.0,0.00027945,2]
[313130310,1706789441075,-500.0,0.00027945,2]
[313130311,1706789441084,-500.0,0.00027945,2]
[313130312,1706789441094,-500.0,0.00027945,2]
[313130313,1706789441103,-500.0,0.00027945,2]
[313130314,1706789441113,-500.0,0.00027945,2]
[313130315,1706789441122,-500.0,0.00027945,2]
[313130316,1706789441132,-630.44,0.00027945,2]
[313130317,1706789441141,-500.0,0.00027945,2]
[313130318,1706789441151,-500.0,0.00027945,2]
[313130319,1706789441160,-500.0,0.00027945,2]
[313130320,1706789441171,-7491.3,0.00027945,2]
[313130321,1706789441180,-500.0,0.00027945,2]
[313130322,1706789441189,-500.0,0.00027945,2]
[313130323,1706789441199,-5037.04,0.00027945,2]
[313130324,1706789441208,-500.0,0.00027945,2]
[313130325,1706789441218,-532.35,0.00027945,2]
[313130326,1706789441227,-500.0,0.00027945,2]
[313130327,1706789441236,-855.46,0.00027945,2]
[313130328,1706789441247,-1993.07,0.00027945,2]
[313130329,1706789441257,-500.0,0.00027945,2]
[313130330,1706789441266,-500.0,0.00027945,2]
[313130331,1706789441276,-664.31,0.00027945,2]
[313130332,1706789441285,-500.0,0.00027945,2]
[313130333,1706789441295,-500.0,0.00027945,2]
[313130334,1706789441304,-778.89,0.00027945,2]
[313130335,1706789441314,-1069.77,0.00027945,2]
[313130336,1706789441324,-1589.64,0.00027945,2]
[313130337,1706789441334,-182.4895492,0.00027945,2]
[313130338,1706789441343,-500.0,0.00027945,2]
[313130339,1706789441352,-500.0,0.00027945,2]
[313130340,1706789441362,-428.46659755,0.00027945,2]
[313130341,1706789441371,-586.13,0.00027945,2]
[313130342,1706789441381,-500.0,0.00027945,2]
[313130343,1706789441390,-500.0,0.00027945,2]
[313130344,1706789441400,-500.0,0.00027945,2]
[313130345,1706789441409,-500.0,0.00027945,2]
[313130346,1706789441419,-500.0,0.00027945,2]
[313130347,1706789441428,-552.56,0.00027945,2]
[313130348,1706789441437,-500.0,0.00027945,2]
[313130349,1706789441447,-500.0,0.00027945,2]
[313130350,1706789441457,-500.0,0.00027945,2]
[313130351,1706789441466,-731.97,0.00027945,2]
[313130352,1706789441476,-500.0,0.00027945,2]
[313130353,1706789441486,-500.0,0.00027945,2]
[313130354,1706789441496,-500.0,0.00027945,2]
[313130355,1706789441505,-500.0,0.00027945,2]
[313130356,1706789441514,-500.0,0.00027945,2]
[313130357,1706789441527,-500.0,0.00027945,2]
[313130358,1706789441536,-500.0,0.00027945,2]
[313130359,1706789441545,-775.07,0.00027945,2]
[313130360,1706789441556,-500.0,0.00027945,2]
[313130361,1706789441566,-500.0,0.00027945,2]
[313130362,1706789441577,-500.0,0.00027945,2]
[313130363,1706789441586,-500.0,0.00027945,2]
[313130364,1706789441595,-500.0,0.00027945,2]
[313130365,1706789441605,-500.0,0.00027945,2]
[313130366,1706789441614,-500.0,0.00027945,2]
[313130367,1706789441626,-1135.03,0.00027945,2]
[313130368,1706789441640,-500.0,0.00027945,2]
[313130369,1706789441649,-500.0,0.00027945,2]
[313130370,1706789441659,-842.52,0.00027945,2]
[313130371,1706789441670,-500.0,0.00027945,5]
[313130372,1706789441680,-500.0,0.00027945,2]
[313130373,1706789441690,-500.0,0.00027945,2]
[313130374,1706789441699,-500.0,0.00027945,2]
[313130375,1706789441711,-500.0,0.00027945,2]
[313130376,1706789441722,-500.0,0.00027945,2]
[313130377,1706789441731,-500.0,0.00027945,2]
[313130378,1706789441743,-500.0,0.00027945,2]
[313130379,1706789441752,-500.0,0.00027945,2]
[313130380,1706789441763,-522.6,0.00027945,2]
[313130381,1706789441773,-500.0,0.00027945,2]
[313130382,1706789441782,-500.0,0.00027945,5]
[313130383,1706789441792,-500.0,0.00027945,2]
[313130384,1706789441803,-500.0,0.00027945,2]
[313130385,1706789441812,-500.0,0.00027945,2]
[313130386,1706789441822,-500.0,0.00027945,2]
[313130387,1706789441831,-500.0,0.00027945,2]
[313130388,1706789441841,-554.61201325,0.00027945,2]
[313130389,1706789441850,-500.0,0.00027945,2]
[313130390,1706789441860,-500.0,0.00027945,2]
[313130391,1706789441870,-2511.0,0.00028,2]
[313130392,1706789441879,-216.46,0.00028179,2]
[313130393,1706789441889,-154.66893655,0.00028196,2]
[313130394,1706789441898,-1109.79868394,0.000283,4]
[313130395,1706789441908,-565.3,0.00028371,2]
[313130396,1706789441917,-500.0,0.00028492,2]
[313130397,1706789441926,-150.0,0.00028492,2]
[313130398,1706789441936,-150.0,0.00028492,2]
[313130399,1706789441946,-500.0,0.00028493,2]
[313130400,1706789441955,-500.9,0.00028493,2]
[313130401,1706789441964,-500.0,0.00028493,2]
[313130402,1706789441974,-500.0,0.00028493,2]
[313130403,1706789441984,-500.0,0.00028493,2]
[313130404,1706789441994,-500.0,0.00028493,2]
[313130405,1706789442004,-500.0,0.00028493,2]
[313130406,1706789442012,-500.0,0.00028493,2]
[313130407,1706789442022,-500.0,0.00028493,2]
[313130408,1706789442032,-500.0,0.00028493,7]
[313130409,1706789442041,-416.53513189,0.00028493,2]
[313130410,1706789442050,-500.0,0.00028493,2]
[313130411,1706789442061,-500.0,0.00028493,2]
[313130412,1706789442071,-500.0,0.00028493,2]
[313130413,1706789442082,-500.0,0.00028493,2]
[313130414,1706789442092,-500.0,0.00028493,2]
[313130415,1706789442102,-500.0,0.00028493,2]
[313130416,1706789442113,-500.0,0.00028493,2]
[313130417,1706789442123,-500.0,0.00028493,2]
[313130418,1706789442132,-630.44,0.00028493,2]
[313130419,1706789442141,-500.0,0.00028493,2]
[313130420,1706789442151,-500.0,0.00028493,2]
[313130421,1706789442160,-500.0,0.00028493,2]
[313130422,1706789442169,-7491.3,0.00028493,2]
[313130423,1706789442178,-500.0,0.00028493,2]
[313130424,1706789442187,-500.0,0.00028493,2]
[313130425,1706789442196,-5037.04,0.00028493,2]
[313130426,1706789442205,-552.39219702,0.00028493,2]
[313130427,1706789442214,-532.35,0.00028493,2]
[313130428,1706789442223,-500.0,0.00028493,2]
[313130429,1706789442232,-855.46,0.00028493,2]
[313130430,1706789442242,-1993.07,0.00028493,2]
[313130431,1706789442251,-500.0,0.00028493,2]
[313130432,1706789442261,-500.0,0.00028493,2]
[313130434,1706789442270,-664.31,0.00028493,2]
[313130436,1706789442280,-500.0,0.00028493,2]
[313130437,1706789442289,-500.0,0.00028493,2]
[313130438,1706789442298,-778.89,0.00028493,2]
[313130439,1706789442307,-1069.77,0.00028493,2]
[313130440,1706789442317,-1589.64,0.00028493,2]
[313130441,1706789442326,-500.0,0.00028493,2]
[313130442,1706789442335,-500.0,0.00028493,2]
[313130443,1706789442344,-586.13,0.00028493,2]
[313130444,1706789442354,-500.0,0.00028493,2]
[313130445,1706789442363,-605.85195954,0.00028493,2]
[313130446,1706789442371,-500.0,0.00028493,2]
[313130447,1706789442381,-407.77751407,0.00028493,2]
[313130448,1706789442390,-500.0,0.00028493,2]
[313130449,1706789442399,-552.56,0.00028493,2]
[313130450,1706789442409,-500.0,0.00028493,2]
[313130451,1706789442418,-411.66012604,0.00028493,2]
[313130452,1706789442427,-731.97,0.00028493,2]
[313130453,1706789442436,-500.0,0.00028493,2]
[313130454,1706789442445,-500.0,0.00028493,2]
[313130455,1706789442455,-500.0,0.00028493,2]
[313130456,1706789442464,-500.0,0.00028493,2]
[313130457,1706789442474,-500.0,0.00028493,2]
[313130458,1706789442484,-500.0,0.00028493,2]
[313130459,1706789442495,-500.0,0.00028493,2]
[313130460,1706789442504,-775.07,0.00028493,2]
[313130461,1706789442514,-500.0,0.00028493,2]
[313130462,1706789442524,-500.0,0.00028493,2]
[313130463,1706789442534,-500.0,0.00028493,2]
[313130464,1706789442544,-500.0,0.00028493,2]
[313130465,1706789442553,-500.0,0.00028493,2]
[313130466,1706789442563,-500.0,0.00028493,2]
[313130467,1706789442572,-500.0,0.00028493,2]
[313130468,1706789442581,-1135.03,0.00028493,2]
[313130469,1706789442590,-500.0,0.00028493,2]
[313130470,1706789442600,-500.0,0.00028493,2]
[313130471,1706789442609,-842.52,0.00028493,2]
[313130472,1706789442623,-500.0,0.00028493,5]
[313130473,1706789442632,-500.0,0.00028493,2]
[313130474,1706789442641,-500.0,0.00028493,2]
[313130475,1706789442650,-500.0,0.00028493,2]
[313130476,1706789442661,-500.0,0.00028493,2]
[313130477,1706789442670,-500.0,0.00028493,2]
[313130478,1706789442680,-500.0,0.00028493,2]
[313130479,1706789442690,-500.0,0.00028493,2]
[313130480,1706789442699,-522.6,0.00028493,2]
[313130481,1706789442708,-500.0,0.00028493,2]
[313130482,1706789442719,-500.0,0.00028493,5]
[313130483,1706789442728,-500.0,0.00028493,2]
[313130484,1706789442737,-500.0,0.00028493,2]
[313130485,1706789442749,-157.44741643,0.00028493,2]
[313130486,1706789442759,-500.0,0.00028493,2]
[313130487,1706789442768,-500.0,0.00028493,2]
[313130488,1706789442777,-500.0,0.00028493,2]
[313130489,1706789442786,-500.0,0.00028499,2]
[313130490,1706789442795,-496.05574758,0.00028499,2]
[313130491,1706789442805,-500.0,0.00028499,2]
[313130492,1706789442815,-500.0,0.00028499,2]
[313130493,1706789442824,-500.0,0.00028499,2]
[313130494,1706789442834,-367.27716653,0.00028499,2]
[313130495,1706789442843,-500.0,0.00028499,2]
[313130496,1706789442852,-500.0,0.00028499,2]
[313130497,1706789442862,-509.48175596,0.00028499,2]
[313130498,1706789442872,-200.44049472,0.00028499,2]
[313130499,1706789442881,-500.0,0.00028499,2]
[313130500,1706789442890,-500.0,0.00028499,2]
[313130501,1706789442899,-509.48175596,0.00028499,2]
[313130502,1706789442909,-500.0,0.00028499,2]
[313130503,1706789442918,-151.88188719,0.00028499,2]
[313130504,1706789442927,-500.0,0.00028499,2]
[313130505,1706789442936,-500.0,0.00028499,2]
[313130506,1706789442945,-500.0,0.00028499,2]
[313130507,1706789442955,-509.48175596,0.00028499,2]
[313130508,1706789442964,-500.0,0.00028499,2]
[313130509,1706789442973,-500.0,0.00028499,2]
[313130510,1706789442982,-500.0,0.00028499,2]
[313130511,1706789442992,-509.48175596,0.00028499,2]
[313130512,1706789443001,-598.10754117,0.00028499,2]
[313130513,1706789443010,-500.0,0.00028499,2]
[313130514,1706789443019,-536.4548216,0.00028499,2]
[313130515,1706789443028,-500.0,0.00028499,2]
[313130516,1706789443037,-500.0,0.00028499,2]
[313130517,1706789443048,-509.48175596,0.00028499,2]
[313130518,1706789443057,-500.0,0.00028499,2]
[313130519,1706789443066,-500.0,0.00028499,2]
[313130520,1706789443075,-500.0,0.00028499,2]
[313130521,1706789443084,-509.48175596,0.00028499,2]
[313130522,1706789443093,-500.0,0.00028499,2]
[313130523,1706789443102,-509.48175596,0.00028499,2]
[313130524,1706789443112,-500.0,0.00028499,2]
[313130525,1706789443121,-461.67627554,0.00028499,2]
[313130526,1706789443131,-509.48175596,0.00028499,2]
[313130527,1706789443140,-500.0,0.00028499,2]
[313130528,1706789443149,-509.48175596,0.00028499,2]
[313130529,1706789443159,-500.0,0.00028499,2]
[313130530,1706789443168,-509.48175596,0.00028499,2]
[313130531,1706789443177,-500.0,0.00028499,2]
[313130532,1706789443186,-509.48175596,0.00028499,2]
[313130533,1706789443196,-509.48175596,0.00028499,2]
[313130534,1706789443204,-500.0,0.00028499,2]
[313130535,1706789443214,-509.48175596,0.00028499,2]
[313130536,1706789443223,-500.0,0.00028499,2]
[313130537,1706789443232,-500.0,0.00028499,2]
[313130538,1706789443243,-509.48175596,0.00028499,2]
[313130539,1706789443252,-500.0,0.00028499,2]
[313130540,1706789443261,-509.48175596,0.00028499,2]
[313130541,1706789443270,-500.0,0.00028499,2]
[313130542,1706789443279,-509.48175596,0.00028499,2]
[313130543,1706789443289,-500.0,0.00028499,2]
[313130544,1706789443298,-509.48175596,0.00028499,2]
[313130545,1706789443307,-500.0,0.00028499,2]
[313130546,1706789443316,-500.0,0.00028499,2]
[313130547,1706789443325,-509.48175596,0.00028499,2]
[313130548,1706789443334,-500.0,0.00028499,2]
[313130549,1706789443343,-500.0,0.00028499,2]
[313130550,1706789443353,-509.48175596,0.00028499,2]
[313130551,1706789443362,-509.48175596,0.00028499,2]
[313130552,1706789443371,-500.0,0.00028499,2]
[313130553,1706789443380,-509.48175596,0.00028499,2]
[313130554,1706789443389,-500.0,0.00028499,2]
[313130555,1706789443398,-509.48175596,0.00028499,2]
[313130556,1706789443407,-500.0,0.00028499,2]
[313130557,1706789443416,-509.48175596,0.00028499,2]
[313130558,1706789443425,-500.0,0.00028499,2]
[313130559,1706789443434,-509.48175596,0.00028499,2]
[313130560,1706789443444,-509.48175596,0.00028499,2]
[313130561,1706789443453,-500.0,0.00028499,2]
[313130562,1706789443463,-509.48175596,0.00028499,2]
[313130563,1706789443472,-509.48175596,0.00028499,2]
[313130564,1706789443482,-500.0,0.00028499,2]
[313130565,1706789443493,-509.48175596,0.00028499,2]
[313130566,1706789443503,-500.0,0.00028499,2]
[313130567,1706789443512,-500.0,0.00028499,2]
[313130568,1706789443522,-509.48175596,0.00028499,2]
[313130569,1706789443532,-509.48175596,0.00028499,2]